bitfinex/quotes_BTCUSD_20240605
["timestamp","ask_amount","ask_price","bid_price","bid_amount"]
[1717598537303,0.436038,70973.0,70972.0,0.284646]
[1717598537678,0.58045693,70973.0,70972.0,0.284646]
[1717598537879,0.64706073,70973.0,70972.0,0.285646]
[1717598538238,0.64706073,70973.0,70972.0,0.284646]
[1717598538466,0.60345693,70973.0,70972.0,0.284646]
[1717598538664,0.60345693,70973.0,70972.0,0.285646]
[1717598539229,0.43955893,70973.0,70972.0,0.285646]
[1717598539434,0.35625893,70973.0,70972.0,0.285646]
[1717598540312,0.35625893,70973.0,70972.0,0.284646]
[1717598541087,0.35625893,70973.0,70972.0,0.30216521]
[1717598541316,0.05004,70973.0,70972.0,0.30216521]
[1717598542406,0.06670781,70973.0,70972.0,0.30316521]
[1717598542605,0.06670781,70973.0,70972.0,0.33826966]
[1717598542807,0.06670781,70973.0,70972.0,0.47816966]
[1717598543287,0.06670781,70973.0,70972.0,0.57916966]
[1717598544395,0.06670781,70973.0,70972.0,0.57816966]
[1717598544968,0.05004,70973.0,70972.0,0.57816966]
[1717598546163,0.05004,70973.0,70972.0,0.57916966]
[1717598546397,0.05004,70973.0,70972.0,0.86097066]
[1717598546729,0.05004,70973.0,70972.0,0.85997066]
[1717598547109,0.05004,70973.0,70972.0,0.86097066]
[1717598548135,0.05004,70973.0,70972.0,0.57816966]
[1717598550868,0.05004,70973.0,70972.0,0.56065045]
[1717598551122,0.05004,70973.0,70972.0,0.57816966]
[1717598551255,0.05004,70973.0,70972.0,0.57916966]
[1717598552910,0.05004,70973.0,70972.0,0.57816966]
[1717598553898,0.05004,70973.0,70972.0,0.43726966]
[1717598555253,0.05004,70973.0,70972.0,0.43826966]
[1717598556258,0.05004,70973.0,70972.0,0.43726966]
[1717598556708,0.05004,70973.0,70972.0,0.43826966]
[1717598557323,0.05004,70973.0,70972.0,0.57916966]
[1717598557741,0.05004,70973.0,70972.0,0.43826966]
[1717598558344,0.05004,70973.0,70972.0,0.43726966]
[1717598558785,0.05004,70973.0,70972.0,0.43826966]
[1717598559245,0.05004,70973.0,70972.0,0.43726966]
[1717598559658,0.05004,70973.0,70972.0,0.43826966]
[1717598560263,0.05004,70973.0,70972.0,0.43726966]
[1717598560854,0.05004,70973.0,70972.0,0.33726966]
[1717598561061,0.05004,70973.0,70972.0,0.31975045]
[1717598561939,0.05004,70973.0,70972.0,0.33726966]
[1717598562141,0.05004,70973.0,70972.0,0.33826966]
[1717598562656,0.05004,70973.0,70972.0,0.32075045]
[1717598563116,0.05004,70973.0,70972.0,0.31975045]
[1717598563515,0.13244,70973.0,70972.0,0.32075045]
[1717598564113,0.29614,70973.0,70972.0,0.31975045]
[1717598564970,0.29614,70973.0,70972.0,0.284646]
[1717598565402,0.29614,70973.0,70972.0,0.31975045]
[1717598566410,0.29614,70973.0,70972.0,0.284646]
[1717598566652,0.29614,70973.0,70972.0,0.31975045]
[1717598566793,0.29614,70973.0,70972.0,0.32023464]
[1717598567217,0.29614,70973.0,70972.0,0.28513019]
[1717598567467,0.29614,70973.0,70972.0,0.28413019]
[1717598567604,0.29614,70973.0,70972.0,0.31923464]
[1717598567818,0.58145693,70973.0,70972.0,0.28513019]
[1717598569407,0.60445693,70973.0,70972.0,0.28513019]
[1717598571380,0.52205693,70973.0,70972.0,0.28513019]
[1717598573775,0.64280137,70973.0,70972.0,0.28513019]
[1717598575337,0.52205693,70973.0,70972.0,0.28513019]
[1717598582774,1.07975393,70973.0,70972.0,0.22985292]
[1717598582956,1.40370825,70973.0,70972.0,0.04260214]
[1717598583189,1.36155093,70973.0,70972.0,0.00780775]
[1717598583616,1.59098344,70973.0,70972.0,0.00780775]
[1717598583832,1.59098344,70973.0,70972.0,0.00680775]
[1717598584039,1.59198344,70973.0,70972.0,0.00780775]
[1717598584238,1.5076688,70973.0,70972.0,0.00780775]
[1717598584476,1.5076688,70973.0,70961.0,0.004]
[1717598584477,0.14092,70962.0,70961.0,0.004]
[1717598584689,0.83047893,70962.0,70961.0,0.004]
[1717598585018,1.31231893,70962.0,70961.0,0.004]
[1717598586057,1.03047893,70962.0,70961.0,0.004]
[1717598587051,0.14094,70952.0,70951.0,0.002]
[1717598587204,0.30835893,70952.0,70951.0,0.002]
[1717598587599,0.28535893,70952.0,70951.0,0.002]
[1717598587799,0.28535893,70952.0,70951.0,0.01951921]
[1717598587800,0.14441893,70952.0,70951.0,0.01951921]
[1717598588191,0.140934,70956.0,70951.0,0.01951921]
[1717598588393,0.28535293,70955.0,70954.0,0.01751921]
[1717598589336,0.4768,70964.0,70959.0,0.01751921]
[1717598589593,0.301704,70971.0,70964.0,0.01751921]
[1717598589813,0.140907,70969.0,70964.0,0.01]
[1717598589983,0.001,70962.0,70961.0,0.01751921]
[1717598590398,0.14441893,70969.0,70960.0,0.1]
[1717598590604,0.140915,70965.0,70960.0,0.1]
[1717598590771,0.140915,70965.0,70964.0,0.001]
[1717598591379,0.28533393,70965.0,70964.0,0.001]
[1717598591621,0.140919,70963.0,70959.0,0.01751921]
[1717598591774,0.140919,70963.0,70960.0,0.001]
[1717598591980,0.14441893,70965.0,70960.0,0.001]
[1717598591981,0.140921,70962.0,70960.0,0.001]
[1717598593442,0.14796858,70961.0,70960.0,0.001]
[1717598593595,0.30826858,70961.0,70960.0,0.001]
[1717598593794,0.301222,70961.0,70960.0,0.001]
[1717598594198,0.140922,70961.0,70959.0,0.03510445]
[1717598594413,0.140924,70960.0,70959.0,0.03510445]
[1717598595037,0.140924,70960.0,70959.0,0.03141722]
[1717598595659,0.14441893,70965.0,70963.0,0.01751921]
[1717598595925,0.140905,70970.0,70966.0,0.01751921]
[1717598596127,0.140908,70968.0,70967.0,0.01751921]
[1717598596329,0.163908,70968.0,70963.0,0.01751921]
[1717598596537,0.163908,70968.0,70964.0,0.01751921]
[1717598596964,0.163908,70968.0,70967.0,0.01751921]
[1717598598394,0.163908,70968.0,70964.0,0.01751921]
[1717598598618,0.14441893,70967.0,70964.0,0.01751921]
[1717598598790,0.14441893,70967.0,70963.0,0.01751921]
[1717598598992,0.14441893,70967.0,70959.0,0.03241722]
[1717598598993,0.14441893,70967.0,70965.0,0.01751921]
[1717598599625,4e-05,70968.0,70965.0,0.01751921]
[1717598599999,4e-05,70968.0,70966.0,0.01751921]
[1717598600441,4e-05,70968.0,70967.0,0.01751921]
[1717598602066,4e-05,70968.0,70966.0,0.03141722]
[1717598602067,4e-05,70968.0,70966.0,0.04893643]
[1717598602269,4e-05,70968.0,70966.0,0.03141722]
[1717598602770,4e-05,70968.0,70966.0,0.04893643]
[1717598602973,4e-05,70968.0,70966.0,0.01751921]
[1717598603170,4e-05,70968.0,70966.0,0.04893643]
[1717598603497,4e-05,70968.0,70966.0,0.03141722]
[1717598604871,0.14091,70967.0,70966.0,0.03241722]
[1717598606637,0.14091,70967.0,70966.0,0.03141722]
[1717598607812,0.14091,70967.0,70964.0,0.03141722]
[1717598608044,0.14091,70967.0,70966.0,0.001]
[1717598608243,0.14091,70967.0,70966.0,0.03241722]
[1717598608631,0.14091,70967.0,70966.0,0.03141722]
[1717598608836,0.37651,70967.0,70966.0,0.03141722]
[1717598609044,0.37651,70967.0,70963.0,0.01751921]
[1717598609045,0.37651,70967.0,70965.0,0.03141722]
[1717598609219,0.37651,70967.0,70966.0,0.03141722]
[1717598610246,0.37651,70967.0,70964.0,0.03141722]
[1717598610420,0.37651,70967.0,70966.0,0.03141722]
[1717598610622,0.14091,70967.0,70966.0,0.001]
[1717598610891,0.54622893,70967.0,70966.0,0.001]
[1717598611098,0.82804993,70967.0,70966.0,0.001]
[1717598611531,0.82804993,70967.0,70960.0,0.03141722]
[1717598611532,0.140922,70961.0,70960.0,0.03141722]
[1717598611688,0.140922,70961.0,70959.0,0.000946]
[1717598611689,0.140924,70960.0,70959.0,0.000946]
[1717598611910,0.28534293,70960.0,70959.0,0.000946]
[1717598612122,0.30834293,70960.0,70959.0,0.000946]
[1717598613165,0.59019093,70960.0,70959.0,0.000946]
[1717598613380,0.30834293,70960.0,70959.0,0.000946]
[1717598614308,1.10593893,70960.0,70959.0,0.000946]
[1717598614425,0.14094,70952.0,70951.0,0.002]
[1717598614633,0.46425893,70952.0,70951.0,0.002]
[1717598614833,0.54225893,70952.0,70951.0,0.002]
[1717598615194,1.10601893,70952.0,70951.0,0.002]
[1717598615403,1.2511368,70952.0,70951.0,0.002]
[1717598616237,1.4511368,70952.0,70951.0,0.002]
[1717598616461,0.82413893,70952.0,70951.0,0.002]
[1717598617524,0.54225893,70952.0,70951.0,0.002]
[1717598617742,0.54229893,70952.0,70951.0,0.002]
[1717598618483,0.54329893,70952.0,70951.0,0.002]
[1717598618698,0.54298363,70952.0,70951.0,0.002]
[1717598620070,0.65175667,70952.0,70951.0,0.002]
[1717598620414,0.93363667,70952.0,70951.0,0.002]
[1717598620822,0.82386363,70952.0,70951.0,0.002]
[1717598621251,0.82486363,70952.0,70951.0,0.002]
[1717598621828,0.82386363,70952.0,70951.0,0.002]
[1717598623025,1.10574363,70952.0,70951.0,0.002]
[1717598623169,1.10574363,70952.0,70941.0,0.004]
[1717598623170,0.281889,70950.0,70941.0,0.004]
[1717598623378,0.281899,70948.0,70942.0,0.03141722]
[1717598623565,0.14096,70942.0,70941.0,0.004]
[1717598623773,0.28537893,70942.0,70941.0,0.03541722]
[1717598623997,0.30837893,70942.0,70941.0,0.03541722]
[1717598624471,0.30837893,70942.0,70941.0,0.004]
[1717598624672,0.30837893,70942.0,70941.0,0.03541722]
[1717598624806,0.30837893,70942.0,70941.0,0.004]
[1717598625005,0.30837893,70942.0,70941.0,0.03541722]
[1717598625006,0.46027893,70942.0,70941.0,0.03541722]
[1717598625700,0.46027893,70942.0,70941.0,0.03641722]
[1717598626161,0.50630682,70942.0,70941.0,0.03641722]
[1717598626886,0.50630682,70942.0,70941.0,0.005]
[1717598627088,0.78822682,70942.0,70941.0,0.005]
[1717598627263,0.86972682,70942.0,70941.0,0.005]
[1717598627805,0.86972682,70942.0,70941.0,0.004]
[1717598628262,0.86972682,70942.0,70941.0,0.005]
[1717598628263,1.15164682,70942.0,70941.0,0.005]
[1717598628481,1.35164682,70942.0,70941.0,0.005]
[1717598628897,1.63356682,70942.0,70941.0,0.004]
[1717598629313,1.35164682,70942.0,70941.0,0.005]
[1717598629710,1.63356682,70942.0,70941.0,0.004]
[1717598630295,1.35164682,70942.0,70941.0,0.004]
[1717598630702,1.33024,70938.0,70937.0,0.009471]
[1717598630861,1.49765893,70938.0,70937.0,0.009471]
[1717598631714,1.77959493,70938.0,70937.0,0.009471]
[1717598632179,1.78059493,70938.0,70937.0,0.009471]
[1717598632597,1.78059493,70938.0,70929.0,0.009471]
[1717598632598,0.9049,70932.0,70929.0,0.009471]
[1717598632802,1.78282721,70932.0,70929.0,0.009471]
[1717598633156,0.2,70930.0,70929.0,0.009471]
[1717598633361,1.17233893,70930.0,70929.0,0.009471]
[1717598633600,1.45430693,70930.0,70929.0,0.009471]
[1717598633855,1.5994248,70930.0,70929.0,0.009471]
[1717598634183,2.1894248,70930.0,70929.0,0.009471]
[1717598634809,0.90494,70928.0,70927.0,0.006542]
[1717598635030,1.35433493,70928.0,70927.0,0.006542]
[1717598635304,0.2,70925.0,70921.0,0.004]
[1717598635429,0.422998,70922.0,70921.0,0.004]
[1717598635789,0.84941593,70922.0,70921.0,0.004]
[1717598636017,0.87241593,70922.0,70921.0,0.004]
[1717598637202,1.07241593,70922.0,70921.0,0.004]
[1717598637666,1.07245593,70922.0,70921.0,0.004]
[1717598637900,0.87245593,70922.0,70921.0,0.005]
[1717598638121,0.59045693,70922.0,70921.0,0.005]
[1717598638344,0.66412412,70922.0,70921.0,0.005]
[1717598638572,0.87245593,70922.0,70921.0,0.005]
[1717598639013,1.15545593,70922.0,70921.0,0.005]
[1717598639234,1.60085493,70922.0,70921.0,0.005]
[1717598639445,0.905007,70921.0,70911.0,2.002]
[1717598639667,1.07242593,70921.0,70911.0,2.002]
[1717598639909,1.35442893,70921.0,70911.0,2.002]
[1717598640128,1.17895965,70921.0,70911.0,2.002]
[1717598640339,1.66242593,70921.0,70911.0,2.002]
[1717598640556,1.46242593,70921.0,70911.0,2.002]
[1717598640778,0.89841993,70921.0,70911.0,2.002]
[1717598641002,0.28541993,70921.0,70918.0,0.1665]
[1717598641188,0.28541993,70921.0,70912.0,0.10364546]
[1717598641428,0.28541993,70921.0,70912.0,0.12116467]
[1717598641647,0.28541993,70921.0,70917.0,0.01751921]
[1717598641867,4e-05,70922.0,70920.0,0.242193]
[1717598642093,0.14445893,70922.0,70921.0,0.08974745]
[1717598642354,0.01694202,70922.0,70921.0,0.18974745]
[1717598642580,4e-05,70922.0,70921.0,0.46412467]
[1717598644314,4e-05,70922.0,70921.0,0.39193643]
[1717598644748,4e-05,70922.0,70921.0,0.36051921]
[1717598644969,4e-05,70922.0,70921.0,0.39193643]
[1717598647920,4e-05,70922.0,70921.0,0.40293643]
[1717598648388,4e-05,70922.0,70921.0,0.54293743]
[1717598648599,4e-05,70922.0,70921.0,0.64293743]
[1717598648818,4e-05,70922.0,70921.0,0.64393743]
[1717598649268,4e-05,70922.0,70921.0,0.64293743]
[1717598653640,4e-05,70922.0,70921.0,0.63293743]
[1717598653906,4e-05,70922.0,70921.0,0.63393743]
[1717598654474,4e-05,70922.0,70921.0,0.63293743]
[1717598655055,4e-05,70922.0,70921.0,0.49293643]
[1717598655673,0.00629511,70922.0,70921.0,0.49193643]
[1717598655876,4e-05,70922.0,70921.0,0.49193643]
[1717598656073,4e-05,70922.0,70921.0,0.39193643]
[1717598656313,4e-05,70922.0,70921.0,0.22573643]
[1717598656690,0.00629511,70922.0,70921.0,0.22573643]
[1717598656890,0.14086732,70924.0,70923.0,0.01751921]
[1717598657439,0.14086732,70924.0,70923.0,0.04893643]
[1717598657591,0.14086732,70924.0,70923.0,0.03141722]
[1717598659527,0.14086732,70924.0,70923.0,0.04893643]
[1717598660156,0.14086732,70924.0,70923.0,0.03141722]
[1717598660471,0.28528625,70924.0,70923.0,0.03241722]
[1717598661279,0.28528625,70924.0,70923.0,0.001]
[1717598662255,0.56727725,70924.0,70923.0,0.03241722]
[1717598662458,0.28528625,70924.0,70923.0,0.03241722]
[1717598663300,0.28528625,70924.0,70923.0,0.001]
[1717598663501,0.28528625,70924.0,70923.0,0.03241722]
[1717598663703,0.28528625,70924.0,70923.0,0.03141722]
[1717598664340,0.141001,70921.0,70920.0,0.009493]
[1717598664536,0.141001,70921.0,70920.0,0.04091022]
[1717598664737,0.300501,70921.0,70920.0,0.009493]
[1717598665091,0.44491993,70921.0,70920.0,0.009493]
[1717598665259,0.74992293,70921.0,70920.0,0.009493]
[1717598667463,0.74996293,70921.0,70920.0,0.009493]
[1717598668706,1.03196593,70921.0,70920.0,0.009493]
[1717598669779,1.03196593,70921.0,70920.0,0.010493]
[1717598670185,0.30845993,70921.0,70920.0,0.010493]
[1717598674295,0.64567292,70921.0,70920.0,0.010493]
[1717598674504,0.36366992,70921.0,70920.0,0.010493]
[1717598674843,0.66233853,70921.0,70920.0,0.010493]
[1717598675759,0.60712854,70921.0,70920.0,0.010493]
[1717598677623,0.32512554,70921.0,70920.0,0.02801221]
[1717598678032,0.32512554,70921.0,70920.0,0.010493]
[1717598678261,0.32512554,70921.0,70920.0,0.02801221]
[1717598678706,0.30212554,70921.0,70920.0,0.02801221]
[1717598679562,0.15770661,70921.0,70920.0,0.02801221]
[1717598681397,4e-05,70921.0,70920.0,0.24217824]
[1717598681612,4e-05,70921.0,70920.0,0.23165767]
[1717598683045,4e-05,70921.0,70920.0,0.15942943]
[1717598686042,0.00164,70921.0,70920.0,0.15942943]
[1717598686243,0.00164,70921.0,70920.0,0.16942943]
[1717598686653,0.00164,70921.0,70920.0,0.15942943]
[1717598686858,0.00164,70921.0,70920.0,0.16942943]
[1717598687276,0.00164,70921.0,70920.0,0.15942943]
[1717598694263,0.00164,70921.0,70920.0,0.16942943]
[1717598694480,0.00164,70921.0,70920.0,0.54313243]
[1717598695140,0.00164,70921.0,70920.0,0.53313243]
[1717598695355,0.00164,70921.0,70920.0,0.54313243]
[1717598696471,0.00164,70921.0,70920.0,0.54213243]
[1717598696729,0.00164,70921.0,70920.0,0.68406116]
[1717598696944,0.00164,70921.0,70920.0,0.64213243]
[1717598697926,0.00164,70921.0,70920.0,0.28191322]
[1717598698134,0.51465993,70921.0,70920.0,0.04091022]
[1717598699550,0.51465993,70921.0,70920.0,0.009493]
[1717598699759,0.51465993,70921.0,70920.0,0.04191022]
[1717598700113,0.51465993,70921.0,70920.0,0.010493]
[1717598700323,0.53765993,70921.0,70920.0,0.010493]
[1717598700522,0.53765993,70921.0,70920.0,0.009493]
[1717598700952,0.53765993,70921.0,70920.0,0.010493]
[1717598701784,0.81966293,70921.0,70920.0,0.010493]
[1717598703064,1.10166593,70921.0,70920.0,0.010493]
[1717598703759,1.11890921,70921.0,70920.0,0.010493]
[1717598705816,0.668358,70912.0,70911.0,2.002]
[1717598706024,0.83737693,70912.0,70911.0,2.002]
[1717598707266,1.11941593,70912.0,70911.0,2.002]
[1717598707479,0.83737693,70912.0,70911.0,3.002]
[1717598708182,1.11941593,70912.0,70911.0,3.002]
[1717598708415,0.83737693,70912.0,70911.0,3.002]
[1717598710012,1.11941593,70912.0,70911.0,3.002]
[1717598710239,1.11941593,70912.0,70911.0,2.81057519]
[1717598710240,1.4516948,70912.0,70911.0,2.81057519]
[1717598710449,2.1818338,70912.0,70911.0,2.66131662]
[1717598710679,1.83671593,70912.0,70911.0,2.58412213]
[1717598710889,1.83671593,70912.0,70911.0,2.48707506]
[1717598711321,2.31875493,70912.0,70911.0,2.48807506]
[1717598711537,2.03671593,70912.0,70911.0,2.48807506]
[1717598711747,2.38733771,70912.0,70911.0,2.29552306]
[1717598711969,2.5746506,70912.0,70911.0,2.29199729]
[1717598712199,2.53245558,70912.0,70911.0,2.29294329]
[1717598712437,0.731059,70892.0,70889.0,0.009493]
[1717598712655,0.731059,70892.0,70881.0,0.004946]
[1717598712656,0.423196,70889.0,70881.0,0.004946]
[1717598712881,0.56761493,70889.0,70881.0,0.004946]
[1717598713103,0.59061493,70889.0,70881.0,0.02246521]
[1717598713308,0.87274593,70889.0,70881.0,0.004946]
[1717598713549,1.1178638,70889.0,70881.0,0.004946]
[1717598713756,1.013226,70884.0,70881.0,0.004946]
[1717598713984,1.18064493,70884.0,70881.0,0.004946]
[1717598714404,1.18064493,70884.0,70870.0,0.009493]
[1717598714405,0.331099,70872.0,70870.0,0.009493]
[1717598714640,0.98731593,70872.0,70870.0,0.009493]
[1717598715070,1.29251393,70872.0,70870.0,0.009493]
[1717598715277,1.11031593,70872.0,70870.0,0.009493]
[1717598715491,1.11649437,70872.0,70870.0,0.009493]
[1717598715981,1.11031593,70872.0,70870.0,0.009493]
[1717598716803,1.31031593,70872.0,70870.0,0.009493]
[1717598717436,1.59251393,70872.0,70870.0,0.009493]
[1717598717907,1.59251393,70872.0,70871.0,0.003]
[1717598718092,1.7376318,70872.0,70871.0,0.003]
[1717598718372,1.2554338,70872.0,70871.0,0.003]
[1717598718565,1.11031593,70872.0,70871.0,2.003]
[1717598718823,0.82911793,70872.0,70871.0,2.002]
[1717598719062,0.47651793,70872.0,70871.0,2.002]
[1717598719283,0.47951793,70872.0,70871.0,2.002]
[1717598719935,0.76171593,70872.0,70871.0,2.002]
[1717598720174,1.04391393,70872.0,70871.0,2.002]
[1717598720374,1.04291393,70872.0,70871.0,2.002]
[1717598720583,1.06591393,70872.0,70871.0,2.002]
[1717598720787,1.06691393,70872.0,70871.0,2.003]
[1717598721237,0.78371593,70872.0,70871.0,2.002]
[1717598721686,0.78471593,70872.0,70871.0,2.002]
[1717598721904,0.78171593,70872.0,70871.0,2.002]
[1717598722162,0.78271593,70872.0,70871.0,2.002]
[1717598722623,0.78071593,70872.0,70871.0,2.002]
[1717598723457,0.78071593,70872.0,70871.0,2.003]
[1717598725960,0.78071593,70872.0,70871.0,2.002]
[1717598726330,0.78071593,70872.0,70871.0,2.003]
[1717598726331,0.79801207,70872.0,70871.0,2.003]
[1717598726739,1.08021007,70872.0,70871.0,2.003]
[1717598727088,1.08021007,70872.0,70871.0,2.002]
[1717598727585,1.08021007,70872.0,70871.0,2.003]
[1717598728469,1.86910807,70872.0,70871.0,2.003]
[1717598728675,1.86910807,70872.0,70871.0,1.97199901]
[1717598728676,2.11989085,70872.0,70871.0,1.97199901]
[1717598728881,2.12089085,70872.0,70871.0,1.97199901]
[1717598729284,2.12089085,70872.0,70871.0,1.94099901]
[1717598729601,2.40308885,70872.0,70871.0,1.82735501]
[1717598729761,2.54920672,70872.0,70871.0,1.82735501]
[1717598729969,2.54920672,70872.0,70871.0,1.77835501]
[1717598730187,2.84191633,70872.0,70871.0,1.68987157]
[1717598730392,2.83991633,70872.0,70871.0,1.60899137]
[1717598730608,2.83991633,70872.0,70871.0,1.60546271]
[1717598730785,2.84191633,70872.0,70871.0,1.60646271]
[1717598731204,2.84191633,70872.0,70871.0,1.56546271]
[1717598731417,2.84191633,70872.0,70871.0,1.1496504]
[1717598731626,2.85204124,70872.0,70871.0,1.1506504]
[1717598731829,2.87696998,70872.0,70871.0,1.13903424]
[1717598732050,2.87596998,70872.0,70871.0,1.04723067]
[1717598732249,2.87596998,70872.0,70871.0,1.02414758]
[1717598732455,2.87696998,70872.0,70871.0,1.02514758]
[1717598733079,2.87696998,70872.0,70871.0,1.02161892]
[1717598733752,2.87496998,70872.0,70871.0,0.90556026]
[1717598733956,2.87496998,70872.0,70871.0,0.89718026]
[1717598734163,2.87496998,70872.0,70871.0,0.87928026]
[1717598734404,2.87696998,70872.0,70871.0,0.88028026]
[1717598734625,2.44965411,70872.0,70871.0,0.87700657]
[1717598734866,2.22665411,70872.0,70871.0,0.87700657]
[1717598735080,1.5466445,70872.0,70871.0,0.87700657]
[1717598735293,2.03934126,70872.0,70871.0,0.87700657]
[1717598735502,2.03934126,70872.0,70871.0,0.82801311]
[1717598735713,1.98445913,70872.0,70871.0,0.82801311]
[1717598735894,1.98345913,70872.0,70871.0,0.82701311]
[1717598736100,2.61405713,70872.0,70871.0,0.82701311]
[1717598736261,2.85455713,70872.0,70871.0,0.81201311]
[1717598736468,2.85555713,70872.0,70871.0,0.79701311]
[1717598736673,2.57335913,70872.0,70871.0,0.79701311]
[1717598737273,2.45024126,70872.0,70871.0,0.79601311]
[1717598738053,2.73243926,70872.0,70871.0,0.79601311]
[1717598738287,2.73243926,70872.0,70871.0,0.79202612]
[1717598739141,2.73043926,70872.0,70871.0,0.77602612]
[1717598739349,3.31465723,70872.0,70871.0,0.77602612]
[1717598739551,3.31665723,70872.0,70871.0,0.77702612]
[1717598740136,3.31565723,70872.0,70871.0,0.77702612]
[1717598740552,3.31765723,70872.0,70871.0,0.77802612]
[1717598741398,2.97253936,70872.0,70871.0,0.77802612]
[1717598741609,3.17253936,70872.0,70871.0,0.77802612]
[1717598742376,3.17053936,70872.0,70871.0,0.77702612]
[1717598742580,3.17053936,70872.0,70871.0,0.77437312]
[1717598742869,3.17253936,70872.0,70871.0,0.77537312]
[1717598743023,3.31765723,70872.0,70871.0,0.77537312]
[1717598743501,3.31765723,70872.0,70871.0,0.77184411]
[1717598743702,3.31465723,70872.0,70871.0,0.76984411]
[1717598743915,3.31465723,70872.0,70871.0,0.76631521]
[1717598744542,3.31565723,70872.0,70871.0,0.75131521]
[1717598744752,3.31465723,70872.0,70871.0,0.75031521]
[1717598744964,3.31465723,70872.0,70871.0,0.73626121]
[1717598745178,3.31465723,70872.0,70871.0,0.71616231]
[1717598745594,3.31565723,70872.0,70871.0,0.71716231]
[1717598745804,3.03345923,70872.0,70871.0,0.71716231]
[1717598746249,3.03545923,70872.0,70871.0,0.71816231]
[1717598747303,2.89034136,70872.0,70871.0,0.71816231]
[1717598748415,2.64984136,70872.0,70871.0,0.71816231]
[1717598748629,2.64884136,70872.0,70871.0,0.71716231]
[1717598748885,2.01824336,70872.0,70871.0,0.71716231]
[1717598749326,1.92666058,70872.0,70871.0,0.71715935]
[1717598749547,1.92666058,70872.0,70871.0,0.95785935]
[1717598749758,1.82766058,70872.0,70871.0,0.95885935]
[1717598750605,1.85066058,70872.0,70871.0,0.95885935]
[1717598750821,1.38663174,70872.0,70871.0,0.95885935]
[1717598751243,1.48663174,70872.0,70871.0,0.95885935]
[1717598751604,1.48463174,70872.0,70871.0,0.95785935]
[1717598752240,1.48363174,70872.0,70871.0,0.95685935]
[1717598753423,1.48463174,70872.0,70871.0,0.95785935]
[1717598753836,1.48663174,70872.0,70871.0,0.95885935]
[1717598754424,1.48663174,70872.0,70871.0,0.95785935]
[1717598754425,1.48463174,70872.0,70871.0,0.95785935]
[1717598755262,1.48663174,70872.0,70871.0,1.03202811]
[1717598755466,1.48663174,70872.0,70871.0,0.95885935]
[1717598755578,1.38463174,70872.0,70871.0,1.03102732]
[1717598755779,0.52653898,70872.0,70871.0,1.03002732]
[1717598756008,0.52653898,70872.0,70871.0,1.03002336]
[1717598756216,0.80873698,70872.0,70871.0,1.03002336]
[1717598756624,0.52653898,70872.0,70871.0,1.03002336]
[1717598756801,0.52753898,70872.0,70871.0,1.03102336]
[1717598757007,0.33653898,70872.0,70871.0,1.03002336]
[1717598757804,0.61873698,70872.0,70871.0,1.03002336]
[1717598758007,0.62073698,70872.0,70871.0,1.03102336]
[1717598758847,0.61873698,70872.0,70871.0,1.03002336]
[1717598759255,0.61873698,70872.0,70871.0,1.03102336]
[1717598759741,0.90093498,70872.0,70871.0,1.03002336]
[1717598760550,0.61873698,70872.0,70871.0,1.03002336]
[1717598760776,0.33653898,70872.0,70871.0,1.04754257]
[1717598761415,0.33636916,70872.0,70871.0,1.04754257]
[1717598762007,0.33736916,70872.0,70871.0,1.04754257]
[1717598762386,0.29707302,70872.0,70871.0,1.04754257]
[1717598762591,0.29607302,70872.0,70871.0,1.04754257]
[1717598763230,0.01072491,70872.0,70871.0,1.04754257]
[1717598763446,0.01272491,70872.0,70871.0,1.18895979]
[1717598763659,0.0036,70872.0,70871.0,1.18895979]
[1717598764075,0.0016,70872.0,70871.0,1.18895979]
[1717598764489,0.0016,70872.0,70871.0,1.18995979]
[1717598765109,0.0016,70872.0,70871.0,1.18895979]
[1717598765312,0.00086,70881.0,70880.0,0.15893643]
[1717598765524,0.00086,70881.0,70880.0,0.37743643]
[1717598765746,0.00086,70881.0,70880.0,0.46060044]
[1717598766593,0.00086,70881.0,70880.0,0.60168344]
[1717598766820,0.141037,70903.0,70902.0,0.01751921]
[1717598767027,0.141037,70903.0,70899.0,0.03141722]
[1717598767028,0.141043,70900.0,70899.0,0.03141722]
[1717598767234,0.141045,70899.0,70898.0,0.04893643]
[1717598767472,0.00765319,70900.0,70899.0,0.01751921]
[1717598767680,0.00765319,70900.0,70898.0,0.29681722]
[1717598767681,0.01912842,70909.0,70908.0,0.01751921]
[1717598767851,0.002,70909.0,70908.0,0.29603643]
[1717598768334,0.002,70909.0,70908.0,0.39603643]
[1717598768741,0.002,70909.0,70908.0,0.29603643]
[1717598768742,0.143025,70909.0,70908.0,0.29603643]
[1717598768955,0.143025,70909.0,70908.0,0.39603643]
[1717598769233,0.143025,70909.0,70908.0,0.27851722]
[1717598770767,0.143025,70909.0,70908.0,0.29703643]
[1717598770974,0.28744393,70909.0,70908.0,0.2481]
[1717598771185,0.31044393,70909.0,70908.0,0.2481]
[1717598771398,0.31044393,70909.0,70908.0,0.2471]
[1717598771602,0.31044393,70909.0,70908.0,0.0817]
[1717598771805,0.16941893,70909.0,70903.0,0.03141722]
[1717598772013,0.16741893,70908.0,70903.0,0.03141722]
[1717598772231,0.141035,70904.0,70903.0,0.03141722]
[1717598772450,0.16741893,70904.0,70899.0,0.26301722]
[1717598772660,0.28545593,70903.0,70902.0,0.03141722]
[1717598772874,0.141043,70900.0,70899.0,0.26301722]
[1717598773048,0.28546193,70900.0,70899.0,0.26301722]
[1717598773305,0.89846193,70900.0,70899.0,0.26301722]
[1717598773484,0.89846193,70900.0,70899.0,0.03141722]
[1717598773686,0.89846193,70900.0,70897.0,0.03141722]
[1717598773897,0.141047,70898.0,70897.0,0.03141722]
[1717598774095,0.30846593,70898.0,70897.0,0.03141722]
[1717598775138,0.30846593,70898.0,70897.0,0.04893643]
[1717598775343,0.30846593,70898.0,70897.0,0.03141722]
[1717598776276,0.30846593,70898.0,70897.0,0.03241722]
[1717598777713,0.30846593,70898.0,70897.0,0.001]
[1717598778131,0.59056093,70898.0,70897.0,0.001]
[1717598778339,0.30846593,70898.0,70897.0,0.001]
[1717598779035,0.4692,70904.0,70903.0,0.01751921]
[1717598779287,0.75465393,70904.0,70903.0,0.01751921]
[1717598779676,0.610235,70904.0,70903.0,0.17511921]
[1717598779896,0.610235,70904.0,70903.0,0.25181921]
[1717598780109,0.610235,70904.0,70903.0,0.2343]